fUST/lending_fUST_20250625
["ID","MTS","AMOUNT","RATE_DAILY","PERIOD"]
[367475518,1750810244629,-574.8597778,0.00019534,2]
[367475519,1750810244643,-574.8597778,0.00019534,2]
[367475520,1750810244656,-159.1692736,0.00019534,2]
[367475521,1750810244668,-159.1692736,0.00019534,2]
[367475522,1750810244680,-574.8597778,0.00019534,2]
[367475523,1750810244691,-1778.234323,0.00019599,2]
[367475524,1750810244703,-587.0,0.00019624,2]
[367475525,1750810244717,-242.002,0.00019624,2]
[367475526,1750810244728,-236.605332,0.00019624,2]
[367475527,1750810244741,-151.0,0.00019624,2]
[367475528,1750810244753,-236.605332,0.00019624,2]
[367475529,1750810244767,-151.0,0.00019624,2]
[367475530,1750810244778,-151.0,0.00019624,2]
[367475531,1750810244791,-233.137033,0.00019624,2]
[367475532,1750810244804,-151.0,0.00019624,2]
[367475533,1750810244816,-233.137033,0.00019624,2]
[367475534,1750810244830,-151.0,0.00019624,2]
[367475535,1750810244842,-425.673971,0.00019624,2]
[367475536,1750810244854,-425.673971,0.00019624,2]
[367475537,1750810244865,-587.0,0.00019624,2]
[367475538,1750810244875,-14171.29434549,0.00019624,2]
[367475539,1750810244888,-544.6,0.00019669,3]
[367475540,1750810244906,-611.9,0.00019726,2]
[367475541,1750810244922,-504.51,0.00019726,2]
[367475542,1750810244935,-531.57,0.00019726,2]
[367475543,1750810244945,-461.34,0.00019726,2]
[367475544,1750810244958,-460.0,0.00019726,2]
[367475545,1750810244969,-840.1,0.00019726,2]
[367475546,1750810244980,-460.0,0.00019726,2]
[367475547,1750810244996,-460.0,0.00019726,2]
[367475548,1750810245007,-738.45,0.00019726,2]
[367475549,1750810245017,-460.0,0.00019726,2]
[367475550,1750810245028,-1280.95,0.00019726,2]
[367475551,1750810245039,-1131.68,0.00019726,2]
[367475552,1750810245050,-460.0,0.00019726,2]
[367475553,1750810245062,-880.75,0.00019726,2]
[367475554,1750810245073,-1965.08,0.00019726,2]
[367475555,1750810245085,-780.71,0.00019726,2]
[367475556,1750810245096,-14171.29434549,0.00019797,2]
[367475557,1750810245106,-219.620329,0.000198,3]
[367475558,1750810245117,-544.6,0.00019857,3]
[367475559,1750810245128,-151.0,0.000199,2]
[367475560,1750810245139,-1025.14355873,0.000199,2]
[367475561,1750810245150,-219.620329,0.00019931,2]
[367475562,1750810245161,-600.0,0.00019949,2]
[367475563,1750810245172,-14171.29434549,0.00019969,2]
[367475564,1750810245182,-151.0,0.00019969,2]
[367475565,1750810245193,-151.0,0.00019969,2]
[367475566,1750810245204,-764.655513,0.00019969,2]
[367475567,1750810245215,-764.655513,0.00019969,2]
[367475568,1750810245227,-9406.18951841,0.0002,2]
[367475569,1750810245237,-5000.0,0.0002,10]
[367475570,1750810245248,-30866.75602388,0.0002,2]
[367475571,1750810245259,-151.0,0.0002,2]
[367475572,1750810245270,-151.0,0.0002,2]
[367475573,1750810245281,-151.0,0.0002,2]
[367475574,1750810245291,-151.0,0.0002,2]
[367475575,1750810245302,-151.0,0.0002,2]
[367475576,1750810245313,-151.0,0.0002,2]
[367475577,1750810245324,-151.0,0.0002,2]
[367475578,1750810245336,-151.0,0.0002,2]
[367475579,1750810245348,-247.65739665,0.0002,2]
[367475580,1750810245358,-219.620329,0.0002,7]
[367475581,1750810245369,-1563.877595,0.0002,2]
[367475582,1750810245380,-611.9,0.0002,2]
[367475583,1750810245390,-531.57,0.0002,2]
[367475584,1750810245404,-461.34,0.0002,2]
[367475585,1750810245416,-460.0,0.0002,2]
[367475586,1750810245427,-840.1,0.0002,2]
[367475587,1750810245438,-151.42429694,0.0002,2]
[367475588,1750810245449,-460.0,0.0002,2]
[367475589,1750810245460,-460.0,0.0002,2]
[367475590,1750810245471,-738.45,0.0002,2]
[367475591,1750810245482,-460.0,0.0002,2]
[367475592,1750810245493,-1280.95,0.0002,2]
[367475593,1750810245504,-1131.68,0.0002,2]
[367475594,1750810245515,-460.0,0.0002,2]
[367475595,1750810245526,-880.75,0.0002,2]
[367475596,1750810245537,-1965.08,0.0002,2]
[367475597,1750810245548,-780.71,0.0002,2]
[367475598,1750810245559,-215.0738,0.00020015,2]
[367475599,1750810245570,-160.0,0.00020025,4]
[367475600,1750810245581,-219.620329,0.00020028,3]
[367475601,1750810245592,-544.6,0.00020046,3]
[367475602,1750810245604,-5000.0,0.00020093,2]
[367475603,1750810245615,-1107.0,0.00020095,2]
[367475604,1750810245627,-177.798,0.000201,2]
[367475605,1750810245639,-151.0,0.00020141,2]
[367475606,1750810245651,-170.541972,0.00020141,2]
[367475607,1750810245660,-170.541972,0.00020141,2]
[367475608,1750810245670,-14171.29434549,0.00020141,2]
[367475609,1750810245679,-219.620329,0.0002015,7]
[367475610,1750810245688,-600.0,0.00020157,2]
[367475611,1750810245698,-500.0,0.00020164,2]
[367475612,1750810245707,-2126.028,0.00020164,2]
[367475613,1750810245716,-404.270193,0.00020187,2]
[367475614,1750810245725,-1043.54833366,0.00020188,2]
[367475615,1750810245736,-160.0,0.00020188,5]
[367475616,1750810245745,-151.0,0.00020226,2]
[367475617,1750810245755,-151.0,0.00020226,2]
[367475618,1750810245764,-151.0,0.00020226,2]
[367475619,1750810245774,-151.0,0.00020226,2]
[367475620,1750810245784,-151.0,0.00020226,2]
[367475621,1750810245794,-151.0,0.00020226,2]
[367475622,1750810245803,-151.0,0.00020226,2]
[367475623,1750810245812,-151.0,0.00020226,2]
[367475624,1750810245822,-151.0,0.00020226,2]
[367475625,1750810245831,-151.0,0.00020226,2]
[367475626,1750810245840,-151.0,0.00020226,2]
[367475627,1750810245850,-544.6,0.00020234,3]
[367475628,1750810245860,-219.620329,0.00020257,3]
[367475629,1750810245871,-160.0,0.0002026,3]
[367475630,1750810245880,-611.9,0.00020273,2]
[367475631,1750810245890,-531.57,0.00020273,2]
[367475633,1750810245900,-461.34,0.00020273,2]
[367475634,1750810245909,-460.0,0.00020273,2]
[367475636,1750810245919,-840.1,0.00020273,2]
[367475637,1750810245930,-460.0,0.00020273,2]
[367475638,1750810245940,-248.58,0.00020273,2]
[367475639,1750810245950,-738.45,0.00020273,2]
[367475640,1750810245959,-460.0,0.00020273,2]
[367475641,1750810245969,-1280.95,0.00020273,2]
[367475642,1750810245979,-1131.68,0.00020273,2]
[367475643,1750810245994,-460.0,0.00020273,2]
[367475644,1750810246207,-880.75,0.00020273,2]
[367475645,1750810246222,-1965.08,0.00020273,2]
[367475646,1750810246234,-780.71,0.00020273,2]
[367475647,1750810246244,-168.42003544,0.0002028,2]
[367475648,1750810246253,-160.0,0.000203,3]
[367475649,1750810246263,-7000.0,0.000203,3]
[367475650,1750810246274,-219.620329,0.000203,7]
[367475651,1750810246284,-12556.00642039,0.000203,3]
[367475652,1750810246295,-160.452438,0.000203,2]
[367475653,1750810246305,-846.68469334,0.000203,3]
[367475654,1750810246315,-213.66798275,0.000203,3]
[367475655,1750810246325,-160.0,0.000203,3]
[367475657,1750810246335,-151.0,0.000203,2]
[367475659,1750810246345,-182.698062,0.000203,2]
[367475661,1750810246355,-182.698062,0.000203,2]
[367475663,1750810246364,-14171.29434549,0.00020314,3]
[367475665,1750810246373,-151.0,0.00020314,2]
[367475666,1750810246382,-151.0,0.00020314,2]
[367475667,1750810246391,-326.820151,0.00020314,2]
[367475668,1750810246401,-326.820151,0.00020314,2]
[367475669,1750810246410,-151.0,0.00020314,2]
[367475670,1750810246419,-206.0,0.0002033,2]
[367475671,1750810246428,-160.0,0.00020352,6]
[367475672,1750810246438,-153.0,0.00020356,2]
[367475673,1750810246447,-153.0,0.00020356,2]
[367475674,1750810246456,-153.0,0.00020356,2]
[367475675,1750810246465,-229.51402,0.00020364,2]
[367475676,1750810246476,-600.0,0.00020364,2]
[367475677,1750810246485,-95471.71268042,0.0002038,4]
[367475678,1750810246495,-151.0,0.0002038,2]
[367475680,1750810246505,-151.0,0.0002038,2]
[367475681,1750810246514,-266.368635,0.0002038,2]
[367475682,1750810246526,-151.0,0.0002038,2]
[367475683,1750810246536,-151.0,0.0002038,2]
[367475684,1750810246546,-151.0,0.0002038,2]
[367475685,1750810246555,-151.0,0.0002038,2]
[367475686,1750810246564,-151.175171,0.0002038,2]
[367475687,1750810246575,-151.0,0.0002038,2]
[367475688,1750810246585,-151.0,0.0002038,2]
[367475689,1750810246596,-151.0,0.0002038,2]
[367475690,1750810246605,-1490.062912,0.0002038,2]
[367475691,1750810246615,-151.0,0.0002038,2]
[367475692,1750810246624,-1490.062912,0.0002038,2]
[367475693,1750810246633,-151.0,0.0002038,2]
[367475694,1750810246643,-151.0,0.0002038,2]
[367475695,1750810246652,-151.0,0.0002038,2]
[367475696,1750810246661,-156.350543,0.0002038,2]
[367475697,1750810246670,-151.0,0.0002038,2]
[367475698,1750810246679,-224.107724,0.0002038,2]
[367475699,1750810246689,-224.107724,0.0002038,2]
[367475700,1750810246698,-764.655513,0.0002038,2]
[367475701,1750810246708,-764.655513,0.0002038,2]
[367475702,1750810246717,-236.605332,0.0002038,2]
[367475703,1750810246727,-151.0,0.0002038,2]
[367475704,1750810246736,-236.605332,0.0002038,2]
[367475705,1750810246746,-151.0,0.0002038,2]
[367475706,1750810246756,-151.0,0.0002038,2]
[367475707,1750810246765,-233.137033,0.0002038,2]
[367475708,1750810246775,-151.0,0.0002038,2]
[367475709,1750810246784,-233.137033,0.0002038,2]
[367475710,1750810246794,-151.0,0.0002038,2]
[367475711,1750810246803,-425.673971,0.0002038,2]
[367475712,1750810246813,-425.673971,0.0002038,2]
[367475713,1750810246822,-151.124598,0.0002038,2]
[367475714,1750810246831,-151.0,0.0002038,2]
[367475715,1750810246841,-168.0,0.00020381,2]
[367475716,1750810246851,-846.68469334,0.000204,3]
[367475717,1750810246861,-151.0,0.000204,2]
[367475718,1750810246870,-151.0,0.000204,3]
[367475720,1750810246879,-153.488293,0.000204,2]
[367475721,1750810246889,-151.0,0.000204,2]
[367475722,1750810246898,-12556.00642039,0.000204,3]
[367475723,1750810246908,-160.0,0.000204,3]
[367475724,1750810246918,-846.68469334,0.000204,3]
[367475725,1750810246927,-213.66798275,0.000204,3]
[367475726,1750810246936,-219.620329,0.0002042,2]
[367475727,1750810246946,-544.6,0.00020423,3]
[367475728,1750810246956,-219.620329,0.0002045,7]
[367475729,1750810246965,-219.620329,0.00020486,3]
[367475730,1750810246974,-14171.29434549,0.00020486,3]
[367475731,1750810246983,-33944.73879633,0.000205,2]
[367475732,1750810246997,-9257.53717718,0.000205,2]
[367475733,1750810247006,-151.0,0.000205,2]
[367475734,1750810247015,-232.325846,0.000205,2]
[367475735,1750810247024,-232.325846,0.000205,2]
[367475736,1750810247034,-1000.0,0.000205,2]
[367475737,1750810247043,-151.0,0.000205,2]
[367475738,1750810247052,-170.541972,0.000205,2]
[367475739,1750810247061,-170.541972,0.000205,2]
[367475740,1750810247071,-160.0,0.00020516,7]
[367475741,1750810247080,-177.3826656,0.00020519,2]
[367475742,1750810247089,-177.3826656,0.00020519,2]
[367475743,1750810247098,-177.3826656,0.00020519,2]
[367475744,1750810247108,-151.0,0.00020547,2]
[367475745,1750810247117,-228.18172,0.00020547,2]
[367475746,1750810247126,-151.0,0.00020547,2]
[367475747,1750810247135,-151.0,0.00020547,2]
[367475748,1750810247145,-253.647781,0.00020547,2]
[367475749,1750810247154,-151.0,0.00020547,2]
[367475750,1750810247163,-151.0,0.00020547,2]
[367475751,1750810247172,-151.0,0.00020547,2]
[367475752,1750810247182,-151.0,0.00020547,2]
[367475753,1750810247191,-151.0,0.00020547,2]
[367475754,1750810247201,-151.0,0.00020547,2]
[367475755,1750810247209,-151.0,0.00020547,2]
[367475756,1750810247219,-219.620329,0.00020547,14]
[367475757,1750810247228,-219.620329,0.00020547,14]
[367475758,1750810247237,-219.620329,0.00020547,14]
[367475759,1750810247247,-219.620329,0.00020547,14]
[367475760,1750810247256,-219.620329,0.00020547,14]
[367475761,1750810247265,-151.0,0.00020547,2]
[367475762,1750810247274,-151.0,0.00020547,2]
[367475763,1750810247283,-611.9,0.00020547,2]
[367475764,1750810247293,-531.57,0.00020547,2]
[367475765,1750810247301,-461.34,0.00020547,2]
[367475766,1750810247311,-460.0,0.00020547,2]
[367475767,1750810247320,-840.1,0.00020547,2]
[367475768,1750810247330,-460.0,0.00020547,2]
[367475769,1750810247339,-738.45,0.00020547,2]
[367475770,1750810247349,-460.0,0.00020547,2]
[367475771,1750810247358,-1280.95,0.00020547,2]
[367475772,1750810247368,-1131.68,0.00020547,2]
[367475773,1750810247378,-460.0,0.00020547,2]
[367475774,1750810247387,-880.75,0.00020547,2]
[367475775,1750810247396,-1965.08,0.00020547,2]
[367475776,1750810247406,-780.71,0.00020547,2]
[367475777,1750810247416,-600.0,0.00020572,2]
[367475778,1750810247425,-151.0,0.0002059,2]
[367475779,1750810247434,-10000.0,0.000206,3]
[367475780,1750810247444,-7624.63,0.000206,2]
[367475781,1750810247453,-151.0,0.000206,2]
[367475782,1750810247462,-151.0,0.000206,2]
[367475783,1750810247471,-151.0,0.000206,2]
[367475784,1750810247481,-219.620329,0.000206,7]
[367475785,1750810247490,-151.0,0.000206,2]
[367475786,1750810247500,-182.698062,0.000206,2]
[367475787,1750810247511,-182.698062,0.000206,2]
[367475788,1750810247520,-206.0,0.0002061,2]
[367475789,1750810247530,-544.6,0.00020611,3]
[367475790,1750810247539,-1107.0,0.00020636,2]
[367475791,1750810247549,-14171.29434549,0.00020659,3]
[367475792,1750810247558,-151.0,0.00020659,2]
[367475793,1750810247569,-233.223763,0.00020659,2]
[367475794,1750810247578,-326.820151,0.00020659,2]
[367475795,1750810247588,-326.820151,0.00020659,2]
[367475796,1750810247599,-36000.0,0.0002066,2]
[367475797,1750810247608,-160.0,0.00020679,8]
[367475798,1750810247618,-200.0,0.0002069,2]
[367475799,1750810247627,-2000.0,0.000207,2]
[367475800,1750810247638,-3718.56608951,0.000207,2]
[367475801,1750810247648,-178.501211,0.00020714,3]
[367475802,1750810247657,-219.620329,0.00020714,3]
[367475803,1750810247667,-500.0,0.00020721,2]
[367475804,1750810247676,-168.0,0.00020736,2]
[367475805,1750810247685,-500.0,0.00020773,2]
[367475806,1750810247695,-403.99422692,0.00020773,2]
[367475807,1750810247705,-306.63387142,0.00020773,2]
[367475808,1750810247714,-500.0,0.00020773,2]
[367475809,1750810247723,-500.0,0.00020773,2]
[367475810,1750810247733,-500.0,0.00020773,2]
[367475811,1750810247742,-500.0,0.00020773,2]
[367475812,1750810247752,-500.0,0.00020773,2]
[367475813,1750810247761,-500.0,0.00020773,2]
[367475814,1750810247771,-500.0,0.00020773,2]
[367475815,1750810247780,-500.0,0.00020773,2]
[367475816,1750810247789,-500.0,0.00020773,2]
[367475817,1750810247799,-500.0,0.00020773,2]
[367475818,1750810247808,-500.0,0.00020773,2]
[367475819,1750810247817,-500.0,0.00020773,2]
[367475820,1750810247827,-500.0,0.00020773,2]
[367475821,1750810247836,-500.0,0.00020773,2]
[367475822,1750810247846,-500.0,0.00020773,2]
[367475823,1750810247855,-500.0,0.00020773,2]
[367475824,1750810247864,-500.0,0.00020773,2]
[367475825,1750810247873,-500.0,0.00020773,2]
[367475826,1750810247882,-198.5921172,0.00020773,2]
[367475827,1750810247891,-500.0,0.00020773,2]
[367475828,1750810247901,-500.0,0.00020773,2]
[367475829,1750810247911,-500.0,0.00020773,2]
[367475830,1750810247921,-500.0,0.00020773,2]
[367475831,1750810247931,-500.0,0.00020773,2]
[367475832,1750810247941,-500.0,0.00020773,2]
[367475833,1750810247950,-500.0,0.00020773,2]
[367475834,1750810247959,-500.0,0.00020773,2]
[367475835,1750810247969,-500.0,0.00020773,2]
[367475836,1750810247979,-500.0,0.00020773,2]
[367475837,1750810247992,-500.0,0.00020773,2]
[367475838,1750810248001,-167.30669379,0.00020773,2]
[367475839,1750810248010,-500.0,0.00020773,2]
[367475840,1750810248019,-500.0,0.00020773,2]
[367475841,1750810248029,-500.0,0.00020773,2]
[367475842,1750810248040,-500.0,0.00020773,2]
[367475843,1750810248050,-500.0,0.00020773,2]
[367475844,1750810248060,-500.0,0.00020773,2]
[367475845,1750810248070,-500.0,0.00020773,2]
[367475846,1750810248080,-500.0,0.00020773,2]
[367475847,1750810248090,-441.49176668,0.00020773,2]
[367475848,1750810248102,-500.0,0.00020773,2]
[367475849,1750810248112,-518.5908885,0.00020773,2]
[367475850,1750810248122,-600.0,0.00020773,2]
[367475851,1750810248132,-500.0,0.00020773,2]
[367475852,1750810248141,-219.48184596,0.00020773,2]
[367475853,1750810248151,-500.0,0.00020773,2]
[367475854,1750810248160,-500.0,0.00020773,2]
[367475855,1750810248170,-500.0,0.00020773,2]
[367475856,1750810248179,-503.18969141,0.00020773,2]
[367475857,1750810248189,-500.0,0.00020773,2]
[367475858,1750810248198,-500.0,0.00020773,2]
[367475859,1750810248208,-500.0,0.00020773,2]
[367475860,1750810248217,-500.0,0.00020773,2]
[367475861,1750810248227,-500.0,0.00020773,2]
[367475862,1750810248236,-500.0,0.00020773,2]
[367475863,1750810248246,-500.0,0.00020773,2]
[367475864,1750810248256,-500.0,0.00020773,2]
[367475865,1750810248265,-500.0,0.00020773,2]
[367475866,1750810248275,-500.0,0.00020773,2]
[367475867,1750810248284,-500.0,0.00020773,2]
[367475868,1750810248293,-160.90592267,0.00020773,2]
[367475869,1750810248303,-500.0,0.00020773,2]
[367475870,1750810248312,-517.12989137,0.00020773,2]
[367475871,1750810248322,-500.0,0.00020773,2]
[367475872,1750810248331,-500.0,0.00020773,2]
[367475873,1750810248340,-500.0,0.00020773,2]
[367475874,1750810248350,-500.0,0.00020773,2]
[367475875,1750810248360,-500.0,0.00020773,2]
[367475876,1750810248370,-153.13632402,0.00020773,2]
[367475877,1750810248379,-500.0,0.00020773,2]
[367475878,1750810248389,-151.0,0.00020773,2]
[367475879,1750810248398,-151.0,0.00020773,2]
[367475880,1750810248407,-151.0,0.00020773,2]
[367475881,1750810248417,-200.0,0.00020779,2]
[367475882,1750810248426,-200.0,0.00020779,2]
[367475883,1750810248435,-126967.33062015,0.0002078,2]
[367475884,1750810248581,-777.84,0.0002078,2]
[367475885,1750810248593,-1721.5052032,0.0002078,2]
[367475886,1750810248604,-528.51191877,0.0002078,2]
[367475887,1750810248617,-539.84621936,0.0002078,2]
[367475888,1750810248628,-406.45986646,0.0002078,2]
[367475889,1750810248640,-1388.36667946,0.0002078,2]
[367475890,1750810248651,-1051.33495113,0.0002078,2]
[367475891,1750810248709,-834.40444356,0.0002078,2]
[367475892,1750810248721,-440.0,0.0002078,2]
[367475893,1750810248733,-456.30140564,0.0002078,2]
[367475894,1750810248762,-460.0,0.00016438,2]
[367475895,1750810248771,-12231.84139975,0.0002078,2]
[367475896,1750810248781,-95624.83654033,0.0002078,2]
[367475897,1750810248793,-4424.79999392,0.0002078,2]
[367475898,1750810248805,-2848.50966926,0.0002078,2]
[367475899,1750810248816,-2264.04370977,0.0002078,2]
[367475900,1750810248987,-250.0,0.00019226,2]
[367475901,1750810248997,-227.01928026,0.00020273,2]
[367475902,1750810249007,-1144.2618933,0.0002078,2]
[367475903,1750810249018,-83142.41494056,0.0002078,2]
[367475904,1750810249028,-151.0,0.0002078,2]
[367475905,1750810249038,-151.0,0.0002078,2]
[367475906,1750810249047,-151.0,0.0002078,2]
[367475907,1750810249057,-151.0,0.0002078,2]
[367475908,1750810249068,-151.0,0.0002078,2]
[367475909,1750810249077,-151.0,0.0002078,2]
[367475910,1750810249087,-151.0,0.0002078,2]
[367475911,1750810249096,-151.0,0.0002078,2]
[367475912,1750810249106,-151.0,0.0002078,2]
[367475913,1750810249115,-251.015778,0.0002078,2]
[367475914,1750810249125,-151.0,0.0002078,2]
[367475915,1750810249134,-232.325846,0.0002078,2]
[367475916,1750810249143,-232.325846,0.0002078,2]
[367475917,1750810249152,-151.0,0.0002078,2]
[367475918,1750810249162,-151.0,0.0002078,2]
[367475919,1750810249171,-151.0,0.0002078,2]
[367475920,1750810249181,-151.0,0.0002078,2]
[367475921,1750810249191,-158.57032,0.0002078,2]
[367475922,1750810249200,-151.0,0.0002078,2]
[367475923,1750810249210,-151.0,0.0002078,2]
[367475924,1750810249219,-151.0,0.0002078,2]
[367475925,1750810249228,-151.0,0.0002078,2]
[367475926,1750810249238,-1490.062912,0.0002078,2]
[367475927,1750810249247,-151.0,0.0002078,2]
[367475928,1750810249256,-1490.062912,0.0002078,2]
[367475929,1750810249266,-151.0,0.0002078,2]
[367475930,1750810249275,-151.0,0.0002078,2]
[367475931,1750810249284,-151.0,0.0002078,2]
[367475932,1750810249294,-151.0,0.0002078,2]
[367475933,1750810249440,-151.0,0.0002078,2]
[367475934,1750810249450,-151.0,0.0002078,2]
[367475935,1750810249459,-151.0,0.0002078,2]
[367475936,1750810249469,-151.0,0.0002078,2]
[367475937,1750810249479,-224.107724,0.0002078,2]
[367475938,1750810249488,-224.107724,0.0002078,2]
[367475939,1750810249498,-151.0,0.0002078,2]
[367475940,1750810249507,-764.655513,0.0002078,2]
[367475941,1750810249517,-764.655513,0.0002078,2]
[367475942,1750810249526,-326.820151,0.0002078,2]
[367475943,1750810249536,-326.820151,0.0002078,2]
[367475944,1750810249546,-151.0,0.0002078,2]
[367475945,1750810249555,-236.605332,0.0002078,2]
[367475946,1750810249565,-236.605332,0.0002078,2]
[367475947,1750810249574,-151.0,0.0002078,2]
[367475948,1750810249584,-151.0,0.0002078,2]
[367475949,1750810249594,-233.137033,0.0002078,2]
[367475950,1750810249604,-151.0,0.0002078,2]
[367475951,1750810249614,-233.137033,0.0002078,2]
[367475952,1750810249624,-151.0,0.0002078,2]
[367475953,1750810249633,-151.0,0.0002078,2]
[367475954,1750810249643,-182.698062,0.0002078,2]
[367475955,1750810249652,-182.698062,0.0002078,2]
[367475956,1750810249661,-425.673971,0.0002078,2]
[367475957,1750810249671,-425.673971,0.0002078,2]
[367475958,1750810249681,-600.0,0.0002078,2]
[367475959,1750810249691,-151.0,0.0002078,2]
[367475960,1750810249701,-170.541972,0.0002078,2]
[367475961,1750810249711,-170.541972,0.0002078,2]
[367475962,1750810249720,-4407.0,0.00020788,2]
[367475963,1750810249730,-301.243142,0.00020788,2]
[367475964,1750810249740,-243.95230059,0.00020798,2]
[367475965,1750810249750,-151.0,0.00020798,2]
[367475966,1750810249760,-236.605332,0.00020798,2]
[367475967,1750810249770,-236.605332,0.00020798,2]
[367475968,1750810249779,-151.0,0.00020798,2]
[367475969,1750810249789,-233.137033,0.00020798,2]
[367475970,1750810249799,-151.0,0.00020798,2]
[367475971,1750810249808,-233.137033,0.00020798,2]
[367475972,1750810249818,-151.0,0.00020798,2]
[367475973,1750810249828,-182.698062,0.00020798,2]
[367475974,1750810249838,-182.698062,0.00020798,2]
[367475975,1750810249847,-425.673971,0.00020798,2]
[367475976,1750810249857,-425.673971,0.00020798,2]
[367475977,1750810249866,-193490.35713276,0.00020799,15]
[367475978,1750810249878,-430.0,0.00020799,15]
[367475980,1750810516988,363.843173,0.00013699,2]
[367475981,1750810530715,200.0,0.00023734,120]
[367475982,1750810560533,5197.83826723,0.00015575,2]
[367475983,1750810560558,19702.16173277,0.00015575,2]
[367475984,1750810650762,200.0,0.00024573,120]
[367475985,1750810710764,200.0,0.00024402,120]
[367475988,1750810830721,200.0,0.00023232,120]
[367475989,1750810950719,200.0,0.00024337,120]
[367475990,1750811010780,200.0,0.00023938,120]
[367475992,1750811250719,200.0,0.00023473,120]
[367475993,1750811311064,412.00266534,0.00019,20]
[367475994,1750811317282,1962.999999,0.00025927,120]
[367475997,1750811393855,13732.40243915,0.0001939,9]
[367476027,1750811432539,-1596.83930114,0.00016338,2]
[367476028,1750811432548,-160.0,0.00016407,2]
[367476029,1750811432558,-300.0,0.00016433,2]
[367476030,1750811432567,-1200.0,0.00016433,2]
[367476031,1750811432576,-300.0,0.00016433,2]
[367476042,1750811432760,-495.66859933,0.00016433,2]
[367476044,1750811432770,-500.0,0.00016433,2]
[367476046,1750811432779,-167.11327698,0.00016433,2]
[367476048,1750811432789,-500.0,0.00016433,2]
[367476050,1750811432798,-500.0,0.00016433,2]
[367476052,1750811432807,-500.0,0.00016433,2]
[367476054,1750811432817,-241.82898424,0.00016433,2]
[367476056,1750811432826,-178.06904792,0.00016433,2]
[367476058,1750811432835,-549.42183432,0.00016433,2]
[367476059,1750811432844,-500.0,0.00016433,2]
[367476060,1750811432853,-500.0,0.00016433,2]
[367476061,1750811432863,-500.0,0.00016433,2]
[367476062,1750811432872,-500.0,0.00016433,2]
[367476063,1750811432882,-400.0830492,0.00016433,2]
[367476064,1750811432891,-2623.91030466,0.00016434,2]
[367476065,1750811432904,-9233.89618843,0.00016434,2]
[367476066,1750811432914,-300.0,0.00016434,2]
[367476067,1750811432923,-591.85824641,0.00016437,2]
[367476068,1750811432933,-591.85824641,0.00016437,2]
[367476069,1750811432942,-591.85824641,0.00016437,2]
[367476070,1750811432951,-591.85824641,0.00016437,2]
[367476071,1750811432960,-591.85824641,0.00016437,2]
[367476072,1750811432969,-591.85824641,0.00016437,2]
[367476073,1750811432978,-591.85824641,0.00016437,2]
[367476074,1750811432988,-591.85824641,0.00016437,2]
[367476075,1750811433000,-591.85824641,0.00016437,2]
[367476076,1750811433009,-591.85824641,0.00016437,2]
[367476077,1750811433019,-591.85824641,0.00016437,2]
[367476078,1750811433028,-591.85824641,0.00016437,2]
[367476079,1750811433038,-591.85824641,0.00016437,2]